Cogmind - Beta 16.1 @@@ ROGUE MODE // 2026.02.10 @ 14:31:12 Player: Lintence Result: Destroyed by S-10 Pest with Light Assault Rifle Performance ------------- Evolutions (2) 1000 Regions Visited (5) 1000 Robots Destroyed (8) 40 Value Destroyed (202) 202 Prototype IDs (24) 480 Alien Tech Used (0) 0 Bonus (300) 300 TOTAL SCORE: 3022 Bonus ------- Aligned with FarCom 300 Cogmind --------- Core Integrity 0/550 Matter 290/300 Energy 100/100 System Corruption 1% Temperature Cool (0) Movement Walking (130) Location -8/Materials Parts ------- > --- POWER (1) -------- (None) > --- PROPULSION (3) --- Titanium Leg > --- UTILITY (5) ------ Signal Interpreter Terrain Scan Processor > --- WEAPON (2) ------- (None) > --- INVENTORY (5) ---- Light Nuclear Core Structural Scanner Rocket Launcher Peak State ------------ > --- POWER ------------ Light Ion Engine > --- PROPULSION ------- Aluminum Leg Aluminum Leg > --- UTILITY ---------- Bomb Drone Bay > --- WEAPON ----------- EM Pulse Gun EM Pulse Gun > --- INVENTORY -------- Ion Engine Ion Engine Improved Terrain Scanner Terrain Scan Processor Seismic Detector [Rating: 19] Favorites ----------- Power Ion Engine Engine Ion Engine Power Core Light Nuclear Core Propulsion Aluminum Leg Leg Aluminum Leg Utility Terrain Scan Processor Device Improved Terrain Scanner Storage Small Storage Unit Processor Terrain Scan Processor Weapon EM Pulse Gun Energy Gun EM Pulse Gun Ballistic Gun Autogun Build | -11 -10 -10 -10 -9 -8 ------- Run | Yrd Mat Min Exi Min Mat Slots Evolved 4 | . . . . . 4 Power . | . . . . . . Propulsion 1 | . . . . . 1 Utility 3 | . . . . . 3 Weapon . | . . . . . . Parts Attached 22 | 7 . 5 . 2 8 Power 5 | 1 . 2 . 1 1 Engine 4 | 1 . 2 . 1 . Core 1 | . . . . . 1 Reactor . | . . . . . . Propulsion 4 | 2 . . . . 2 Treads . | . . . . . . Leg 4 | 2 . . . . 2 Wheel . | . . . . . . Hover . | . . . . . . Flight . | . . . . . . Utility 8 | 2 . 3 . 1 2 Device 4 | 1 . 2 . . 1 Storage 1 | 1 . . . . . Processor 3 | . . 1 . 1 1 Hackware . | . . . . . . Protection . | . . . . . . Artifact . | . . . . . . Weapon 5 | 2 . . . . 3 Energy Gun 4 | 2 . . . . 2 Energy Cannon . | . . . . . . Ballistic Gun 1 | . . . . . 1 Ballistic Cannon . | . . . . . . Launcher . | . . . . . . Special Weapon . | . . . . . . Impact Weapon . | . . . . . . Slashing Weapon . | . . . . . . Piercing Weapon . | . . . . . . Special Melee Weapon . | . . . . . . Unidentified Prototypes 1 | . . 1 . . . Corrupted Parts 1 | . . 1 . . . System Corruption 1 | . . 1 . . . Parts Lost 12 | . . . . . 12 Power 1 | . . . . . 1 Propulsion 3 | . . . . . 3 Utility 3 | . . . . . 3 Weapon 5 | . . . . . 5 Highest Loss Streak 9 | . . . . . 9 To Critical Strikes . | . . . . . . Average Backups 4 | 1 4 4 5 5 2 Power 1 | . 1 1 2 . . Propulsion . | . . . . . . Utility 2 | . 2 2 3 3 1 Weapon . | . 1 . . . 1 Tool/Special . | . . . . . . Unused Backups 6 | . . 1 . 3 2 Power . | . . . . . . Propulsion . | . . . . . . Utility 3 | . . . . 2 1 Weapon 3 | . . 1 . 1 1 Tool/Special . | . . . . . . Average Slot Usage (%) 93 | . 100 96 100 100 61 Engine 12 | . 14 14 14 14 5 Leg 25 | . 28 28 28 28 13 Device 10 | . 14 14 14 5 10 Storage 2 | . 14 6 . . . Processor 14 | . . 4 14 22 21 Energy Gun 25 | . 28 28 28 28 8 Peak Build Rating 19 | 7 7 19 10 11 16 Average Rating 9 | 5 7 10 10 9 11 On Entrance 7 | . 7 7 10 10 9 Avg Prop Armor Cover (%) . | . . . . . . Naked Turns . | . . . . . . Heaviest Build 15 | 15 15 15 10 12 15 Greatest Support 20 | 20 20 20 20 20 20 Greatest Overweight (x) 2 | . . . . . 2 Average Overweight (x) . | . . . . . . Largest Inventory Capacity 8 | 8 8 8 5 5 5 Average Capacity 5 | 6 8 6 5 5 5 Most Carried 6 | 4 4 6 5 5 4 Average Carried 4 | 1 4 4 5 4 2 Final Capacity 8 | 8 8 5 5 5 5 Final Carried 5 | 4 4 5 5 5 3 Class Distribution -------------------- 80% | Mutant 19% | Skirmisher Dominant Class ---------------- Mutant | -10/Materials Mutant | -10/Mines Mutant | -10/Exiles Mutant | -9/Mines Mutant | -8/Materials Resources | -11 -10 -10 -10 -9 -8 ----------- Run | Yrd Mat Min Exi Min Mat Matter Collected 405 | 223 . 97 . 15 70 Remotely . | . . . . . . Salvage Created 292 | 52 . 138 . . 102 Parts 25 | 7 . 12 . . 6 Haulers Intercepted . | . . . . . . Recyclers Shooed 1 | . . 1 . . . Parts Field Recycled . | . . . . . . Retrieved Matter . | . . . . . . Parts Self-Destructed . | . . . . . . Prevented . | . . . . . . Parts Restored . | . . . . . . Kills | -11 -10 -10 -10 -9 -8 ------- Run | Yrd Mat Min Exi Min Mat Combat Hostiles Destroyed 4 | . . 2 . . 2 Guns 3 | . . 1 . . 2 AOE 1 | . . 1 . . . Classes Destroyed 3 | 1 . 2 . . . Builder 2 | . . 2 . . . Tunneler 2 | 2 . . . . . Grunt 4 | . . 2 . . 2 Best Kill Streak 2 | 1 . 2 . . 2 Combat Bots Only 2 | . . 2 . . 2 Max Kills in Single Turn 1 | 1 . 1 . . 1 Gunslinging . | . . . . . . Exploded 1 | . . 1 . . . Melee . | . . . . . . Uniques/NPCs Destroyed . | . . . . . . Combat | -11 -10 -10 -10 -9 -8 -------- Run | Yrd Mat Min Exi Min Mat Hostile Shots Fired 178 | . 4 10 . 5 159 Missed 62 | . 2 4 . 2 54 Hits 116 | . 2 6 . 3 105 Projectile 116 | . 2 6 . 3 105 Critical Strikes 3 | . . . . . 3 Damage Taken 1589 | . 20 112 . 36 1421 Core 599 | . . 43 . . 556 Absorbed by Shields . | . . . . . . Core Remaining (%) 91 | 100 . . . 82 . Volleys Fired 29 | 3 . 12 . . 14 Largest 2 | 2 . 2 . . 2 Hottest 92 | 80 . 80 . . 92 Shots Fired 53 | 6 . 24 . . 23 Gun 53 | 6 . 24 . . 23 Cannon . | . . . . . . Launcher . | . . . . . . Special . | . . . . . . Kinetic 10 | . . . . . 10 Thermal 13 | . . . . . 13 Explosive . | . . . . . . Electromagnetic 30 | 6 . 24 . . . Robot Hit Streak 8 | 3 . 8 . . 5 Robot Miss Streak 2 | 1 . 2 . . 1 Penetration Max . | . . . . . . Secondary Targets 1 | . . . . . 1 Max Gunslinging Chain 1 | . . . . . 1 Shots Hit Robots 36 | 4 . 17 . . 15 Core Hits 14 | 2 . 6 . . 6 Critical Kills . | . . . . . . Critical Parts Destroyed . | . . . . . . Critical Strikes 2 | . . 1 . . 1 Burn 1 | . . . . . 1 Corrupt 1 | . . 1 . . . Melee Attacks . | . . . . . . Impact . | . . . . . . Slashing . | . . . . . . Piercing . | . . . . . . Sneak Attacks . | . . . . . . Combat Hostiles . | . . . . . . Follow-up Attacks . | . . . . . . Damage Inflicted 588 | 52 . 270 . 11 255 Guns 508 | 52 . 206 . . 250 Cannons . | . . . . . . Explosions 64 | . . 64 . . . Melee . | . . . . . . Ramming 16 | . . . . 11 5 Kinetic 93 | . . . . . 93 Thermal 221 | . . 64 . . 157 Explosive . | . . . . . . Electromagnetic 258 | 52 . 206 . . . Impact . | . . . . . . Slashing . | . . . . . . Piercing . | . . . . . . Highest Corruption 1 | . . 1 1 1 1 Average Corruption 1 | . . 1 1 1 1 Corruption Purged . | . . . . . . Corruption Blocked . | . . . . . . Effects 4 | . . 1 . 3 . Message Errors 1 | . . . . 1 . Heat Flow Errors 1 | . . . . 1 . Energy Discharges 1 | . . 1 . . . Data Loss (minor) 1 | . . . . 1 . Overload Shots . | . . . . . . Overflow Damage . | . . . . . . Projectiles . | . . . . . . Explosions . | . . . . . . Melee . | . . . . . . Knockbacks . | . . . . . . Impact . | . . . . . . Kinetic . | . . . . . . Secondary . | . . . . . . Self-Inflicted Damage 34 | . . 32 . . 2 Shots 1 | . . 1 . . . Rammed 1 | . . . . . 1 Targets Rammed 5 | . . . . 1 4 Kicked 4 | . . . . 1 3 Crushed . | . . . . . . Highest Temperature 279 | 36 . 180 . 279 116 Average Temperature 66 | 18 . 70 . 146 44 Received Heat Transfer 369 | . 12 48 . 21 288 Siege Activations . | . . . . . . Martial Activations . | . . . . . . Shielding Activations . | . . . . . . Robots Disrupted . | . . . . . . Combat Hostiles . | . . . . . . Robots Corrupted . | . . . . . . Combat Hostiles . | . . . . . . Parts Fried 1 | . . 1 . . . Impact Corruptions . | . . . . . . Robots Melted . | . . . . . . Combat Hostiles . | . . . . . . Parts Melted . | . . . . . . Heat Transferred 507 | . . 100 . . 407 Parts Sabotaged . | . . . . . . Parts Stolen . | . . . . . . Parts Stripped . | . . . . . . Power Chain Reactions 2 | . . 2 . . . Alert | -11 -10 -10 -10 -9 -8 ------- Run | Yrd Mat Min Exi Min Mat Maximum Alert Level . | . . . . . . Low Security (%) 100 | 100 100 100 . 100 100 Level 1 . | . . . . . . Level 2 . | . . . . . . Level 3 . | . . . . . . Level 4 . | . . . . . . Level 5 . | . . . . . . High Security . | . . . . . . Max Security . | . . . . . . Peak Influence 55 | 5 6 48 . 45 55 Initial . | . . . . . . Average 5 | 1 . 11 . 4 8 Influence Increases 233 | 10 11 72 . 45 95 Destroy 0b10 Robot/C 80 | . . 40 . . 40 Destroy 0b10 Robot/NC 20 | 10 . 10 . . . Destroy Leader 20 | . . 10 . . 10 Successful Hack 11 | . 11 . . . . Destroy Structure 12 | . . 12 . . . Lose Combat Pursuer 90 | . . . . 45 45 Influence Decreases 233 | 10 11 72 . 45 95 Time Decay 155 | 10 11 59 . 45 30 Lost Part 65 | . . . . . 65 Lost Ally 13 | . . 13 . . . Squads Dispatched . | . . . . . . Investigation . | . . . . . . Extermination . | . . . . . . Reinforcement . | . . . . . . Assault . | . . . . . . Garrison . | . . . . . . Intercept . | . . . . . . Searches Triggered . | . . . . . . Construction Impeded . | . . . . . . Haulers Reinforced . | . . . . . . Active Scanning Responses . | . . . . . . Cargo Convoy Interrupts . | . . . . . . Stealth | -11 -10 -10 -10 -9 -8 --------- Run | Yrd Mat Min Exi Min Mat Distress Signals . | . . . . . . Communications Jammed . | . . . . . . Distress Signals . | . . . . . . Times Spotted 20 | . 3 3 . 3 11 Peak Tracking Total 5 | . 3 2 . 3 5 Tactical Retreats 2 | . . . . 1 1 Traps | -11 -10 -10 -10 -9 -8 ------- Run | Yrd Mat Min Exi Min Mat Traps Triggered . | . . . . . . Indirectly . | . . . . . . Trap Hack Attempts . | . . . . . . Triggered . | . . . . . . Disarmed . | . . . . . . Reprogrammed . | . . . . . . Reused . | . . . . . . Traps Extracted . | . . . . . . Installed . | . . . . . . Triggered . | . . . . . . Machines | -11 -10 -10 -10 -9 -8 ---------- Run | Yrd Mat Min Exi Min Mat Machines Disabled . | . . . . . . Max in Single Turn . | . . . . . . Machines Repaired . | . . . . . . Machines Dismantled . | . . . . . . Machines Sabotaged . | . . . . . . Overloaded Fab Kills . | . . . . . . Hacking | -11 -10 -10 -10 -9 -8 --------- Run | Yrd Mat Min Exi Min Mat Machines Accessed 9 | . 2 1 5 . 1 Terminals 3 | . 2 . . . 1 Fabricators . | . . . . . . Repair Stations . | . . . . . . Recycling Units . | . . . . . . Scanalyzers . | . . . . . . Garrison Access . | . . . . . . Total Hacks 36 | . 5 1 28 . 2 Successful 34 | . 4 1 28 . 1 Failed 2 | . 1 . . . 1 Catastrophic . | . . . . . . Database Lockouts . | . . . . . . Manual 1 | . . . 1 . . Terminals 7 | . 5 . . . 2 Fabricators . | . . . . . . Repair Stations . | . . . . . . Recycling Units . | . . . . . . Scanalyzers . | . . . . . . Garrison Access . | . . . . . . Terminal Hacks 34 | . 4 1 28 . 1 Record 30 | . 3 . 27 . . Open Door 1 | . . 1 . . . Hauler Manifests 1 | . . . . . 1 Zone Layout 1 | . 1 . . . . Proto ID Catalog 1 | . . . 1 . . Fabricator Hacks . | . . . . . . Repair Station Hacks . | . . . . . . Recycling Unit Hacks . | . . . . . . Scanalyzer . | . . . . . . Garrison Access Hacks . | . . . . . . Unauthorized Hacks . | . . . . . . Terminals . | . . . . . . Fabricators . | . . . . . . Repair Stations . | . . . . . . Recycling Units . | . . . . . . Scanalyzers . | . . . . . . Garrison Access . | . . . . . . Data Cores Recovered . | . . . . . . Used . | . . . . . . Hacking Detections 3 | . 2 . . . 1 Full Trace Events . | . . . . . . Feedback Events . | . . . . . . Feedback Blocked . | . . . . . . Robot Schematics Acquired . | . . . . . . Robots Built . | . . . . . . Authchips . | . . . . . . Time . | . . . . . . Total Robot Build Rating . | . . . . . . Part Schematics Acquired . | . . . . . . Parts Built . | . . . . . . Authchips . | . . . . . . Time . | . . . . . . Total Part Build Rating . | . . . . . . Part Studies Acquired . | . . . . . . Parts Repaired . | . . . . . . Time . | . . . . . . Parts Recycled . | . . . . . . Recycled Matter . | . . . . . . Retrieved Matter . | . . . . . . Retrieved Components . | . . . . . . Parts Scanalyzed . | . . . . . . Part Schematics Acquired . | . . . . . . Parts Damaged . | . . . . . . Bothacking | -11 -10 -10 -10 -9 -8 ------------ Run | Yrd Mat Min Exi Min Mat Used RIF Installer . | . . . . . . Robots Hacked . | . . . . . . Non-combat . | . . . . . . Combat . | . . . . . . Robot Hacks Applied . | . . . . . . Relay Couplers Released . | . . . . . . Fabnet Peak Effective % . | . . . . . . Robots Rewired . | . . . . . . Allies Hacked . | . . . . . . Hacks Repelled . | . . . . . . Allies | -11 -10 -10 -10 -9 -8 -------- Run | Yrd Mat Min Exi Min Mat Total Allies . | . . . . . . Largest Group . | . . . . . . Highest-Rated Group . | . . . . . . Highest-Rated Ally . | . . . . . . Total Orders 2 | . . 2 . . . EXPLORE 2 | . . 2 . . . Ally Attacks 2 | . . 2 . . . Total Damage . | . . . . . . Kills . | . . . . . . Allies Corrupted . | . . . . . . Allies Melted . | . . . . . . Intel | -11 -10 -10 -10 -9 -8 ------- Run | Yrd Mat Min Exi Min Mat Active Infowar (turns) 1094 | 39 149 198 362 189 157 Sensors 128 | . . . . . 128 Terrain 789 | . . 82 362 189 156 Seismic 304 | 39 149 116 . . . Robot Analysis Total . | . . . . . . Derelict Logs Recovered 3 | . . 1 . 2 . Drone Launches 2 | . . 2 . . . Drone Recoveries . | . . . . . . Exploration | -11 -10 -10 -10 -9 -8 ------------- Run | Yrd Mat Min Exi Min Mat Turns Passed 1627 | 90 149 263 362 526 237 Spaces Moved 1239 | 57 125 175 302 427 153 Core 17 | 2 . . . . 15 Treads . | . . . . . . Legs 1222 | 55 125 175 302 427 138 Wheels . | . . . . . . Hover . | . . . . . . Flight . | . . . . . . Fastest Speed 50 | 50 120 120 120 120 50 Average Speed 119 | 117 120 120 120 120 118 Slowest Speed 190 | 120 120 120 120 120 190 Overloaded Moves . | . . . . . . Propulsion Burnouts . | . . . . . . Robots Hopped . | . . . . . . Potential Cave-ins . | . . . . . . Cave-ins Triggered . | . . . . . . Exploration Rate (%) 41 | 3 29 41 62 95 17 Regions Visited 5 Branch Regions 3 Pre-discovered Areas 3 | . . 1 . 2 . Known Exits Taken 1 | . . . . 1 . Unknown Exits Taken 4 | 1 1 1 1 . . Scrap Searched 4 | . . . . 4 . Spaces Dug . | . . . . . . Terrain Destroyed 13 | . . 13 . . . Melee . | . . . . . . Projectile . | . . . . . . AOE 13 | . . 13 . . . Terrain Rammed . | . . . . . . Walls Destroyed . | . . . . . . Machines Disabled . | . . . . . . Actions | -11 -10 -10 -10 -9 -8 --------- Run | Yrd Mat Min Exi Min Mat Total 1328 | 70 124 204 301 444 185 Wait 12 | . . 5 . 3 4 Move 1234 | 56 124 174 301 426 153 Hop . | . . . . . . Pick Up 14 | 4 . 4 . 6 . Fast Attach 14 | 7 . 1 . . 6 Attach 5 | . . 2 . . 3 Detach 1 | . . . . . 1 Swap 4 | . . 2 . 2 . Drop 10 | . . 4 . 6 . Fire 29 | 3 . 12 . . 14 Melee . | . . . . . . Ram 1 | . . . . . 1 Kick 4 | . . . . 1 3 Crush . | . . . . . . Escape Stasis . | . . . . . . Rewire . | . . . . . . Trap . | . . . . . . Miscellaneous . | . . . . . . Route ------- -11/Scrapyard -10/Materials -10/Mines -10/Exiles (discovered 2 exits: [*Min x2]) -9/Mines (discovered 2 exits: *Mat x2) -8/Materials History --------- Turn | Location | Event 16 | -11/Scrapyard | Discovered new exit (range 16) 91 | -11/Scrapyard | Entered Materials 223 | -10/Materials | Discovered new exit (range 15) 240 | -10/Materials | Entered Mines 243 | -10/Mines | Met a Derelict bent on vengeance 301 | -10/Mines | Build established: Mutant 349 | -10/Mines | Found the Drone Emporium 357 | -10/Mines | Found Prototype Device 357 | -10/Mines | Identified Bomb Drone Bay 460 | -10/Mines | Learned location of Storage (-9) 497 | -10/Mines | Deemed a non-threat by the Exiles lab entrance 497 | -10/Mines | Discovered new exit (range 5) 503 | -10/Mines | Entered Exiles 523 | -10/Exiles | Discovered new exit (range 15) 560 | -10/Exiles | Met 8R-AWN 575 | -10/Exiles | Met EX-HEX 621 | -10/Exiles | Met EX-BIN 650 | -10/Exiles | Aligned with FarCom system 651 | -10/Exiles | Given EX-Vault access code 691 | -10/Exiles | Opened EX-Vault 719 | -10/Exiles | Warned to stay clear of 0b10 Research branches 740 | -10/Exiles | Exiles lab attacked by MAIN.C 853 | -10/Exiles | Discovered new exit (range 12) 865 | -10/Exiles | Entered Mines 883 | -9/Mines | Learned location of Recycling (-9) 1045 | -9/Mines | Discovered new exit (range 12) 1074 | -9/Mines | Learned Materials emergency access door positions 1115 | -9/Mines | Received a Rocket Launcher from a helpful Derelict 1284 | -9/Mines | Discovered new exit (range 7) 1290 | -9/Mines | Identified exit to Materials 1391 | -9/Mines | Entered Materials 1391 | -8/Materials | Evolved 4 slots: Propulsion x1, Utility x3 1504 | -8/Materials | Lost 3 parts (1u2w) 1551 | -8/Materials | Core integrity fell below 50% 1586 | -8/Materials | Lost 9 parts (1p3n2u3w) 1589 | -8/Materials | Core integrity fell below 20% 1628 | -8/Materials | Destroyed by S-10 Pest with Light Assault Rifle Last Messages --------------- 01535_ Acquired Hvy. Laser. 01535_ Penetrated by Slug. 01541_ Acquired Carbon-fiber Leg. 01541_ Penetrated by Slug. 01541_ Autogun destroyed. 01548_ Imp. Terrain Scanner destroyed. 01550_ Acquired 15 matter. 01550_ Penetrated by Slug. 01553_ Kicked H-55 Commando. 01553_ Hvy. Laser destroyed. 01554_ Kicked H-55 Commando. 01555_ Carbon-fiber Leg destroyed. 01556_ Slammed into H-55 Commando. 01556_ Destabilizing: System corrupted (+1). 01557_ Acquired Lgt. Nuclear Core. 01557_ Y-45 Defender destroyed. 01559_ Acquired 10 matter. 01566_ Acquired Titanium Leg. 01599_ S-10 Pest suffers critical hit (Destroy). 01602_ Connecting with Terminal... Map ----- +----------------------------------------------------+ | ??????????????????? ! ! ?#????#??##??#### # | | ???????????????????######### ???##??########## # | | ???????????????????? ? ? ?## ?###?############ # | | ??????????????????????? ??# ?????##?###?##### # | | ??????????????????????????? ?##?############# # | | ??????????????????????"?? ? ?#?###?# ???# # | | ????????????????????????? + ??###??### ? ?## | | ???????????????????????? ?? ??####??????"?? ## | | ????????????????????????????? ?????####""?? ?## | | ???????????????????????????????????#??##"?"? ## | | ?????????????????????????????? ??#??##?#??? ? ## | | ????????????????????????????????#???########+## | | ??????????????????????????????????? | | ?????????????????????????????????????? " | | ??????????????????????????????????????#??#?#### | | ????????????????????????????????????????#?#?#### | | ??????????????????????????????????############## | | ??????????????????????????????????# ! + | | ??????????????????????????????????# """ """ # | | ??????????????????????????????????# """ """ # | | ??????????????????????????????????# """ """ # | | ??????????????????????????????????# # | | ???????????????????????#??????????############## | | ???????????????????????# ?????????????######?### | | ???????????????????????# ######+####### ##### | | ???????????????????????+ @ s | | ??????????????????????w# s s T | | ???????????????????????########+####### ##### | | ?????????????????????????# [ #?######/####### | | ?????????????????????????# g### # | | ?????????????????????????# """ /h/ # | | ?????????????????????????# """ ### # | | ?????????????????????????# """ #?# # | | ?????????????????????????# [#?# # | | ?????????????????????????########?############## | | ???????????????????????????????????????????????? | | ???????????????????????????????????????????????? | | ????????????????????????????????????????????????## | | ?????????????????????????????????????????????????? | | ?????????????????????????????????????????????????? | | ?????????????????????????????????????????????????? | | ?????????????????????????????????????????????????? | | ?????????????????????????????????????????????????? | | ?????????????????????????????????????????????????? | | ?????????????????????????????????????????????????? | | ?????????????????????????????????????????????????? | | ?????????????????????????????????????????????????? | | ?????????????????????????????????????????????????? | | ?????????????????????????????????????????????????? | | ?????????????????????????????????????????????????? | +----------------------------------------------------+ Best States ------------- Heat Dissipation 31 Energy Generation 12 Energy Capacity 265 Matter Stores 300 Matter Capacity 300 Sight Range 16 Robot Scan Range 14 Terrain Scan Range 16 Terrain Scan Density 160 Evasion (%) 55 Item Schematics ----------------- None Robot Schematics ------------------ None Fabricated ------------ Nothing Repaired ---------- Nothing Studied --------- None Alien Tech Used ----------------- None Achievements -------------- A Problem For Future Me I Have A Map? Sixth Sense Challenges ------------ None Game ------ Seed IntegrityDisposableStatue Manual? 0 Play Time 00:27:02 Cumulative 48.1 hours Start 2026.02.10 @ 10:07:31 End 2026.02.10 @ 14:31:12 Sessions 3 Manual Loads 0 Difficulty Rogue Special Mode None Game No. 93 Rogue 93 Adventurer 0 Explorer 0 Win Type - Total 1 Types 1/0/0/0/0/0/0/0/0/0 Lore% 16 Gallery% 29 Achievement% 17 Wizard Run 0 Options --------- Layout 1 ASCII 0 Keyboard 0 Movement Mouse Keybinds 0 Fullscreen 2 Font 20/X11 Map View 50x35 Zoom Use 0% Tactical HUD 1 Map Filters NONE Filters NONE Steam 1 RUN: ee12dae8-ae13-45dc-8c3e-4f53d9d972bc